{"text_format":"3","workbook":"xlsx","n_sheets":2,"sheets":["CONTROLE DE CONFIRMAÇÕES","RESUMO DE CONFIRMAÇÕES"],"not_rendered":{"charts":2,"defined_names":22},"read":"whole","date_system":"1900"}

{"sheet":"CONTROLE DE CONFIRMAÇÕES","index":0,"n_rows":15,"n_cols":15,"rows_kept":15,"merged":[[0,3,0,4],[0,5,0,7]]}
[{"$nulls":5},"RESUMO DE CONFIRMAÇÕES"]
[null,"DATA DO CASAMENTO",null,"Controle de convites do casamento"]
[null,{"$f":"TODAY()+283","v":"2023-05-13"},null,"NOME DO CONVIDADO","ENVIADO?","CONFIRMAÇÃO","GRUPO","CONVIDADO","PARENTESCO","ENDEREÇO","CIDADE","ESTADO","CEP","TELEFONE","EMAIL DE CONTATO"]
[null,"DIAS RESTANTES",null,"Nome 1","Sim","Sim",1,"Futuro cônjuge 1","Irmão","Endereço","Cidade","Estado","CEP","Telefone","pessoa@exemplo.com"]
[null,{"$f":"DiasRestantes","v":283},null,"Nome 2","Sim","Não",3,"Futuro cônjuge 1","Amigo","Endereço","Cidade","Estado","CEP","Telefone","pessoa@exemplo.com"]
[null,"PARTICIPARÃO",null,"Nome 3","Sim","Sim",1,"Outros","Amigo","Endereço","Cidade","Estado","CEP","Telefone","pessoa@exemplo.com"]
[null,{"$f":"TotalParticipantes","v":12},null,"Nome 4","Sim","Não",2,"Futuro cônjuge 2","Amigo","Endereço","Cidade","Estado","CEP","Telefone","pessoa@exemplo.com"]
[null,"NÃO PARTICIPARÃO",null,"Nome 5","Sim","Sim",2,"Futuro cônjuge 2","Amigo","Endereço","Cidade","Estado","CEP","Telefone","pessoa@exemplo.com"]
[null,{"$f":"TotalNãoParticipantes","v":6},null,"Nome 6","Sim","Provisório",null,"Outros","Amigo","Endereço","Cidade","Estado","CEP","Telefone","pessoa@exemplo.com"]
[null,"PENDENTE",null,"Nome 7","Sim","Sim",2,"Futuro cônjuge 2","Amigo","Endereço","Cidade","Estado","CEP","Telefone","pessoa@exemplo.com"]
[null,{"$f":"ConfirmaçõesPendentes","v":1},null,"Nome 8","Sim","Não",1,"Outros","Amigo","Endereço","Cidade","Estado","CEP","Telefone","pessoa@exemplo.com"]
[{"$nulls":3},"Nome 9","Sim","Sim",4,"Futuro cônjuge 1","Amigo","Endereço","Cidade","Estado","CEP","Telefone","pessoa@exemplo.com"]
[{"$nulls":3},"Nome 10","Sim","Sim",2,"Futuro cônjuge 1","Amigo","Endereço","Cidade","Estado","CEP","Telefone","pessoa@exemplo.com"]
[{"$nulls":3},"Nome 11","Sim",null,null,"Futuro cônjuge 2","Irmão","Endereço","Cidade","Estado","CEP","Telefone","pessoa@exemplo.com"]
[{"$nulls":3},"TOTAIS:",{"$f":"COUNTIF('CONTROLE DE CONFIRMAÇÕES'!$E$4:$E$14,\"Sim\")","v":11},{"$f":"COUNTA('CONTROLE DE CONFIRMAÇÕES'!$F$4:$F$14)","v":10},{"$f":"SUBTOTAL(109,ConvitesMesa[GRUPO])","v":18}]

{"sheet":"RESUMO DE CONFIRMAÇÕES","index":1,"n_rows":11,"n_cols":15,"rows_kept":11,"merged":[[0,3,0,4],[0,5,0,8],[2,3,6,3],[2,4,6,4],[7,3,11,3],[7,4,11,4]]}
[{"$nulls":3},"CONTROLE DE \nCONFIRMAÇÕES"]
[null,"DATA DO CASAMENTO",null,"Resumo de confirmações",{"$nulls":10},"Anotações"]
[null,{"$f":"DataDoCasamento","v":"2023-05-13"},null,"SIM","O gráfico de barras clusterizado mostrando os tipos de convidados confirmados está nesta célula."]
[null,"DIAS RESTANTES",{"$nulls":3},"OUTROS",{"$f":"IFERROR(SUMIFS(ConvitesMesa[GRUPO],ConvitesMesa[CONVIDADO],\"=Outros\",ConvitesMesa[CONFIRMAÇÃO],\"Sim\"),0)","v":1},{"$f":"ConvitesMesa[[#Totals],[ENVIADO?]]","v":11}]
[null,{"$f":"DiasRestantes","v":283},{"$nulls":3},"FUTURO CÔNJUGE 2",{"$f":"IFERROR(SUMIFS(ConvitesMesa[GRUPO],ConvitesMesa[CONVIDADO],\"=Futuro cônjuge 2\",ConvitesMesa[CONFIRMAÇÃO],\"Sim\"),0)","v":4},{"$f":"ConvitesMesa[[#Totals],[ENVIADO?]]","v":11}]
[null,"PARTICIPARÃO",{"$nulls":3},"FUTURO CÔNJUGE 1",{"$f":"IFERROR(SUMIFS(ConvitesMesa[GRUPO],ConvitesMesa[CONVIDADO],\"=Futuro cônjuge 1\",ConvitesMesa[CONFIRMAÇÃO],\"Sim\"),0)","v":7},{"$f":"ConvitesMesa[[#Totals],[ENVIADO?]]","v":11}]
[null,{"$f":"TotalParticipantes","v":12}]
[null,"NÃO PARTICIPARÃO",null,"NÃO","O gráfico de barras clusterizado mostrando os tipos de convidados não confirmados está nesta célula."]
[null,{"$f":"TotalNãoParticipantes","v":6},{"$nulls":3},"OUTROS",{"$f":"IFERROR(SUMIFS(ConvitesMesa[GRUPO],ConvitesMesa[CONVIDADO],\"=Outros\",ConvitesMesa[CONFIRMAÇÃO],\"Não\"),0)","v":1},{"$f":"ConvitesMesa[[#Totals],[ENVIADO?]]","v":11}]
[null,"PENDENTE",{"$nulls":3},"FUTURO CÔNJUGE 2",{"$f":"IFERROR(SUMIFS(ConvitesMesa[GRUPO],ConvitesMesa[CONVIDADO],\"=Futuro cônjuge 2\",ConvitesMesa[CONFIRMAÇÃO],\"Não\"),0)","v":2},{"$f":"ConvitesMesa[[#Totals],[ENVIADO?]]","v":11}]
[null,{"$f":"ConfirmaçõesPendentes","v":1},{"$nulls":3},"FUTURO CÔNJUGE 1",{"$f":"IFERROR(SUMIFS(ConvitesMesa[GRUPO],ConvitesMesa[CONVIDADO],\"=Futuro cônjuge 1\",ConvitesMesa[CONFIRMAÇÃO],\"Não\"),0)","v":3},{"$f":"ConvitesMesa[[#Totals],[ENVIADO?]]","v":11}]